Cogmind - Beta 16.1 @@@ ROGUE MODE // 2026.04.07 @ 12:05:32 Player: Maelyn Result: Destroyed self with Rocket Launcher Performance ------------- Evolutions (1) 500 Regions Visited (3) 600 Robots Destroyed (15) 75 Value Destroyed (417) 417 Prototype IDs (2) 40 Alien Tech Used (0) 0 Bonus (0) 0 TOTAL SCORE: 1632 Bonus ------- None Cogmind --------- Core Integrity 0/400 Matter 255/300 Energy 250/250 System Corruption 0% Temperature Cool (0) Movement Treading (480) Ox4 Location -9/Mines Parts ------- > --- POWER (1) -------- Ion Engine > --- PROPULSION (2) --- Light Treads > --- UTILITY (4) ------ Huge Storage Unit Structural Scanner Visual Processing Unit Medium Armor Plating > --- WEAPON (2) ------- Grenade Launcher Rocket Launcher > --- INVENTORY (25) --- Hardened Light Armor Plating Heavy EM Pulse Gun Improved EM Shotgun Spread Laser Assault Rifle Datajack Peak State ------------ > --- POWER ------------ Ion Engine > --- PROPULSION ------- Light Treads Light Treads > --- UTILITY ---------- Improved Heat Sink Huge Storage Unit Improved Terrain Scanner ECM Suite > --- WEAPON ----------- Improved EM Shotgun Assault Rifle > --- INVENTORY -------- Ion Engine Aluminum Leg Aluminum Leg ECM Suite EM Pulse Gun Assault Rifle Grenade Launcher Rocket Launcher Datajack [Rating: 16] Favorites ----------- Power Ion Engine Engine Ion Engine Propulsion Light Treads Treads Light Treads Leg Aluminum Leg Utility Huge Storage Unit Device Improved Terrain Scanner Storage Huge Storage Unit Processor Visual Processing Unit Protection Medium Armor Plating Weapon Assault Rifle Energy Gun Improved EM Shotgun Ballistic Gun Assault Rifle Launcher Grenade Launcher Build | -11 -10 -9 -9 ------- Run | Yrd Mat Mat Min Slots Evolved 2 | . . 2 . Power . | . . . . Propulsion . | . . . . Utility 2 | . . 2 . Weapon . | . . . . Parts Attached 25 | 10 1 14 . Power 3 | 1 . 2 . Engine 3 | 1 . 2 . Core . | . . . . Reactor . | . . . . Propulsion 5 | 4 . 1 . Treads 3 | 2 . 1 . Leg 2 | 2 . . . Wheel . | . . . . Hover . | . . . . Flight . | . . . . Utility 10 | 2 1 7 . Device 5 | 1 . 4 . Storage 2 | 1 1 . . Processor 1 | . . 1 . Hackware . | . . . . Protection 2 | . . 2 . Artifact . | . . . . Weapon 7 | 3 . 4 . Energy Gun 3 | 1 . 2 . Energy Cannon . | . . . . Ballistic Gun 2 | 2 . . . Ballistic Cannon . | . . . . Launcher 2 | . . 2 . Special Weapon . | . . . . Impact Weapon . | . . . . Slashing Weapon . | . . . . Piercing Weapon . | . . . . Special Melee Weapon . | . . . . Unidentified Prototypes 2 | . . 2 . Parts Lost 14 | . . 14 . Power 2 | . . 2 . Propulsion 4 | . . 4 . Utility 5 | . . 5 . Weapon 3 | . . 3 . Highest Loss Streak 9 | . . 9 . To Critical Strikes . | . . . . Average Backups 6 | 3 5 6 5 Power . | . 1 . . Propulsion . | 1 2 . . Utility . | . . . . Weapon 3 | 1 1 3 3 Tool/Special . | . . . . Unused Backups 4 | . . . 4 Power . | . . . . Propulsion . | . . . . Utility 1 | . . . 1 Weapon 2 | . . . 2 Tool/Special 1 | . . . 1 Average Slot Usage (%) 85 | . 100 80 88 Engine 11 | . 14 10 11 Treads 15 | . 28 13 11 Leg 1 | . . 2 . Device 15 | . 14 17 11 Storage 11 | . 14 11 11 Processor 4 | . . 1 11 Protection 4 | . . 1 11 Energy Gun 4 | . . 8 . Ballistic Gun 6 | . 28 3 . Launcher 11 | . . 9 22 Peak Build Rating 16 | 9 9 16 12 Average Rating 11 | 4 9 11 11 On Entrance 7 | . 9 9 11 Avg Prop Armor Cover (%) . | . . . . Naked Turns . | . . . . Heaviest Build 100 | 15 90 100 100 Greatest Support 40 | 40 40 40 20 Greatest Overweight (x) 30 | 1 2 30 4 Average Overweight (x) 2 | . 1 3 4 Largest Inventory Capacity 25 | 8 25 25 25 Average Capacity 23 | 6 23 25 25 Most Carried 10 | 5 7 10 6 Average Carried 6 | 4 5 6 5 Final Capacity 25 | 8 25 25 25 Final Carried 7 | 4 7 4 6 Class Distribution -------------------- 100% | Mutant Dominant Class ---------------- Mutant | -10/Materials Mutant | -9/Materials Mutant | -9/Mines Resources | -11 -10 -9 -9 ----------- Run | Yrd Mat Mat Min Matter Collected 601 | 154 100 170 177 Remotely . | . . . . Salvage Created 494 | 25 112 336 21 Parts 26 | 5 4 14 3 Haulers Intercepted . | . . . . Recyclers Shooed . | . . . . Parts Field Recycled . | . . . . Retrieved Matter . | . . . . Parts Self-Destructed . | . . . . Prevented . | . . . . Parts Restored . | . . . . Kills | -11 -10 -9 -9 ------- Run | Yrd Mat Mat Min Combat Hostiles Destroyed 9 | . 2 7 . Guns 3 | . 2 1 . AOE 6 | . . 6 . Classes Destroyed 6 | 1 2 3 . Worker 3 | . 1 1 1 Tunneler 1 | 1 . . . Recycler 1 | . . 1 . Watcher 1 | . . 1 . Grunt 6 | . 2 4 . Sentry 3 | . . 3 . Best Kill Streak 5 | 1 2 5 1 Combat Bots Only 4 | . 1 4 . Max Kills in Single Turn 3 | 1 1 3 1 Gunslinging . | . . . . Exploded 3 | . . 3 . Melee . | . . . . Uniques/NPCs Destroyed . | . . . . Combat | -11 -10 -9 -9 -------- Run | Yrd Mat Mat Min Hostile Shots Fired 176 | . 39 137 . Missed 53 | . 7 46 . Hits 123 | . 32 91 . Projectile 123 | . 32 91 . Critical Strikes 3 | . . 3 . Damage Taken 1831 | . 452 1317 62 Core 509 | . 107 351 51 Absorbed by Shields . | . . . . Core Remaining (%) 78 | 100 57 . . Volleys Fired 36 | 2 10 23 1 Largest 2 | 2 2 2 2 Hottest 96 | 40 40 96 63 Shots Fired 69 | 4 20 43 2 Gun 58 | 4 20 34 . Cannon . | . . . . Launcher 11 | . . 9 2 Special . | . . . . Kinetic 34 | 4 20 10 . Thermal 19 | . . 19 . Explosive 11 | . . 9 2 Electromagnetic 5 | . . 5 . Robot Hit Streak 12 | 2 12 10 11 Robot Miss Streak 3 | 1 3 2 . Penetration Max . | . . . . Secondary Targets 1 | . . 1 . Max Gunslinging Chain 1 | . . 1 . Shots Hit Robots 50 | 3 15 31 1 Core Hits 25 | 1 7 16 1 Critical Kills . | . . . . Critical Parts Destroyed . | . . . . Critical Strikes 2 | . . 2 . Burn 2 | . . 2 . Melee Attacks . | . . . . Impact . | . . . . Slashing . | . . . . Piercing . | . . . . Sneak Attacks . | . . . . Combat Hostiles . | . . . . Follow-up Attacks . | . . . . Damage Inflicted 1191 | 41 191 901 58 Guns 604 | 41 191 372 . Cannons . | . . . . Explosions 587 | . . 529 58 Melee . | . . . . Ramming . | . . . . Kinetic 335 | 41 191 103 . Thermal 272 | . . 272 . Explosive 552 | . . 494 58 Electromagnetic 32 | . . 32 . Impact . | . . . . Slashing . | . . . . Piercing . | . . . . Highest Corruption . | . . . . Average Corruption . | . . . . Corruption Purged . | . . . . Corruption Blocked . | . . . . Overload Shots . | . . . . Overflow Damage 44 | . . 42 2 Projectiles . | . . . . Explosions 44 | . . 42 2 Melee . | . . . . Knockbacks . | . . . . Impact . | . . . . Kinetic . | . . . . Secondary . | . . . . Self-Inflicted Damage 171 | . . 109 62 Shots 8 | . . 6 2 Rammed . | . . . . Targets Rammed . | . . . . Kicked . | . . . . Crushed . | . . . . Highest Temperature 26 | . 8 26 . Average Temperature 6 | . 2 9 . Received Heat Transfer 831 | . 252 579 . Siege Activations . | . . . . Martial Activations . | . . . . Shielding Activations . | . . . . Robots Disrupted . | . . . . Combat Hostiles . | . . . . Robots Corrupted . | . . . . Combat Hostiles . | . . . . Parts Fried . | . . . . Impact Corruptions . | . . . . Robots Melted . | . . . . Combat Hostiles . | . . . . Parts Melted . | . . . . Heat Transferred 716 | . . 716 . Parts Sabotaged . | . . . . Parts Stolen . | . . . . Parts Stripped . | . . . . Power Chain Reactions 1 | . . 1 . Alert | -11 -10 -9 -9 ------- Run | Yrd Mat Mat Min Maximum Alert Level . | . . . . Low Security (%) 100 | 100 100 100 100 Level 1 . | . . . . Level 2 . | . . . . Level 3 . | . . . . Level 4 . | . . . . Level 5 . | . . . . High Security . | . . . . Max Security . | . . . . Peak Influence 141 | 5 40 141 2 Initial 2 | . . . 2 Average 19 | . 6 35 . Influence Increases 378 | 5 55 300 18 Destroy 0b10 Robot/C 180 | . 40 140 . Destroy 0b10 Robot/NC 30 | 5 5 15 5 Destroy Leader 62 | . 10 52 . Disable Machine 30 | . . 30 . Destroy Structure 76 | . . 63 13 Influence Decreases 360 | 5 55 293 7 Entered New Map 5 | . . . 5 Time Decay 298 | 5 55 236 2 Lost Part 57 | . . 57 . Squads Dispatched 1 | . . 1 . Investigation . | . . . . Extermination . | . . . . Reinforcement 1 | . . 1 . Assault . | . . . . Garrison . | . . . . Intercept . | . . . . Searches Triggered . | . . . . Construction Impeded . | . . . . Haulers Reinforced . | . . . . Active Scanning Responses . | . . . . Cargo Convoy Interrupts . | . . . . Stealth | -11 -10 -9 -9 --------- Run | Yrd Mat Mat Min Distress Signals 2 | . . 2 . Communications Jammed . | . . . . Distress Signals . | . . . . Times Spotted 21 | . 5 16 . Peak Tracking Total 4 | . 2 4 . Tactical Retreats . | . . . . Traps | -11 -10 -9 -9 ------- Run | Yrd Mat Mat Min Traps Triggered . | . . . . Indirectly . | . . . . Trap Hack Attempts . | . . . . Triggered . | . . . . Disarmed . | . . . . Reprogrammed . | . . . . Reused . | . . . . Traps Extracted . | . . . . Installed . | . . . . Triggered . | . . . . Machines | -11 -10 -9 -9 ---------- Run | Yrd Mat Mat Min Machines Disabled 2 | . . 2 . Max in Single Turn 1 | . . 1 . Machines Repaired . | . . . . Machines Dismantled . | . . . . Machines Sabotaged . | . . . . Overloaded Fab Kills . | . . . . Hacking | -11 -10 -9 -9 --------- Run | Yrd Mat Mat Min Machines Accessed . | . . . . Terminals . | . . . . Fabricators . | . . . . Repair Stations . | . . . . Recycling Units . | . . . . Scanalyzers . | . . . . Garrison Access . | . . . . Total Hacks . | . . . . Successful . | . . . . Failed . | . . . . Catastrophic . | . . . . Database Lockouts . | . . . . Manual . | . . . . Terminals . | . . . . Fabricators . | . . . . Repair Stations . | . . . . Recycling Units . | . . . . Scanalyzers . | . . . . Garrison Access . | . . . . Terminal Hacks . | . . . . Fabricator Hacks . | . . . . Repair Station Hacks . | . . . . Recycling Unit Hacks . | . . . . Scanalyzer . | . . . . Garrison Access Hacks . | . . . . Unauthorized Hacks . | . . . . Terminals . | . . . . Fabricators . | . . . . Repair Stations . | . . . . Recycling Units . | . . . . Scanalyzers . | . . . . Garrison Access . | . . . . Data Cores Recovered . | . . . . Used . | . . . . Hacking Detections . | . . . . Full Trace Events . | . . . . Feedback Events . | . . . . Feedback Blocked . | . . . . Robot Schematics Acquired . | . . . . Robots Built . | . . . . Authchips . | . . . . Time . | . . . . Total Robot Build Rating . | . . . . Part Schematics Acquired . | . . . . Parts Built . | . . . . Authchips . | . . . . Time . | . . . . Total Part Build Rating . | . . . . Part Studies Acquired . | . . . . Parts Repaired . | . . . . Time . | . . . . Parts Recycled . | . . . . Recycled Matter . | . . . . Retrieved Matter . | . . . . Retrieved Components . | . . . . Parts Scanalyzed . | . . . . Part Schematics Acquired . | . . . . Parts Damaged . | . . . . Bothacking | -11 -10 -9 -9 ------------ Run | Yrd Mat Mat Min Used RIF Installer . | . . . . Robots Hacked . | . . . . Non-combat . | . . . . Combat . | . . . . Robot Hacks Applied . | . . . . Relay Couplers Released . | . . . . Fabnet Peak Effective % . | . . . . Robots Rewired . | . . . . Allies Hacked . | . . . . Hacks Repelled . | . . . . Allies | -11 -10 -9 -9 -------- Run | Yrd Mat Mat Min Total Allies . | . . . . Largest Group . | . . . . Highest-Rated Group . | . . . . Highest-Rated Ally . | . . . . Total Orders . | . . . . Ally Attacks . | . . . . Total Damage . | . . . . Kills . | . . . . Allies Corrupted . | . . . . Allies Melted . | . . . . Intel | -11 -10 -9 -9 ------- Run | Yrd Mat Mat Min Active Infowar (turns) 1670 | 17 313 862 478 Optics 642 | . . 164 478 Terrain 865 | 17 313 535 . Structural 780 | . . 302 478 ECM 178 | . . 178 . Robot Analysis Total . | . . . . Derelict Logs Recovered . | . . . . Drone Launches . | . . . . Drone Recoveries . | . . . . Exploration | -11 -10 -9 -9 ------------- Run | Yrd Mat Mat Min Turns Passed 1844 | 89 313 964 478 Spaces Moved 463 | 54 94 216 99 Core 19 | 16 . 3 . Treads 417 | 26 94 198 99 Legs 27 | 12 . 15 . Wheels . | . . . . Hover . | . . . . Flight . | . . . . Fastest Speed 50 | 50 160 320 480 Average Speed 364 | 119 297 402 480 Slowest Speed 1550 | 160 320 1550 480 Overloaded Moves . | . . . . Propulsion Burnouts . | . . . . Robots Hopped . | . . . . Potential Cave-ins . | . . . . Cave-ins Triggered . | . . . . Exploration Rate (%) 21 | 4 21 28 31 Regions Visited 3 Branch Regions 1 Pre-discovered Areas . | . . . . Known Exits Taken . | . . . . Unknown Exits Taken 3 | 1 1 1 . Scrap Searched 2 | . . . 2 Spaces Dug . | . . . . Terrain Destroyed 91 | . . 67 24 Melee . | . . . . Projectile . | . . . . AOE 91 | . . 67 24 Terrain Rammed . | . . . . Walls Destroyed . | . . . . Machines Disabled . | . . . . Actions | -11 -10 -9 -9 --------- Run | Yrd Mat Mat Min Total 551 | 71 109 269 102 Wait . | . . . . Move 460 | 53 93 215 99 Hop . | . . . . Pick Up 24 | 6 4 12 2 Fast Attach 5 | 5 . . . Attach 17 | 2 . 15 . Detach . | . . . . Swap 8 | 3 1 4 . Drop 1 | . 1 . . Fire 36 | 2 10 23 1 Melee . | . . . . Ram . | . . . . Kick . | . . . . Crush . | . . . . Escape Stasis . | . . . . Rewire . | . . . . Trap . | . . . . Miscellaneous . | . . . . Route ------- -11/Scrapyard -10/Materials -9/Materials -9/Mines (discovered 1 exit: [*Mat]) History --------- Turn | Location | Event 6 | -11/Scrapyard | Discovered new exit (range 15) 90 | -11/Scrapyard | Entered Materials 306 | -10/Materials | Build established: Mutant 384 | -10/Materials | Discovered new exit (range 7) 403 | -10/Materials | Entered another Materials area 403 | -9/Materials | Evolved 2 slots: Utility x2 855 | -9/Materials | Lost 3 parts (2n1w) 966 | -9/Materials | Core integrity fell below 50% 975 | -9/Materials | Core integrity fell below 20% 998 | -9/Materials | Lost 9 parts (1p2n4u2w) 1128 | -9/Materials | Discovered new exit (range 13) 1367 | -9/Materials | Entered Mines 1494 | -9/Mines | Discovered new exit (range 10) 1845 | -9/Mines | Destroyed self with Rocket Launcher Last Messages --------------- GOAL=ESCAPE 01372_ Searching scrap... 01372_ Found Spread Laser. 01372_ Found Hrd. Light Armor Plating. 01372_ Found 37 Matter. 01372_ Found 38 Matter. 01373_ Acquired 38 matter. 01382_ Acquired Spread Laser. 01392_ Acquired Hrd. Light Armor Plating. 01393_ Acquired 37 matter. 01494_ EXIT=FOUND 01753_ Searching scrap... 01753_ Found Trap Extractor. 01753_ Found EM Pulse Gun. 01753_ Found 65 Matter. 01753_ Found 37 Matter. 01754_ Acquired 37 matter. 01758_ Acquired 65 matter. 01845_ K-01 Serf destroyed. 01845_ Destroyed Com. Wheel. Map ----- +----------------------------------------------------+ | ?????????????????????????????????????????????????? | | ?????????????????????????????????????????????????? | | ?????????????????????????????????????????????????? | | ?????????????????????????????????????????????????? | | ????????????????????????????????????????????????## | | ????????????????????????????????????????????????## | | ????????????????????????????????????????????????## | | ????????????????????????????????????????????????## | | ????????????????????????????????????????????????## | | ???????????????????????????????????????????????### | | ??????????????????????????????????????????????#### | | ??????????????????????????????????????????????### | | ??????????????????????????????????????????????## | | ??????????????????????????????????????????????## | | ??????????????????????????????????????????????## | | ??????????????????????????????????????????????## | | ??????????????????????????????????????????????## | | ?????????????????????????????????????????????### | | ???????????????????????#####????????????????#### | | ?????????????????????#########??????????????### | | ?????????????????????#### #### ##???????????## | | ?????????????????????## ## ##???????????## | | ?????????????????????## # ##???????????## | | ?????????????????????## ##???????????## | | ?????????????????????## ##??????????????### | | ?????????????????????## @ ##??????????????### | | ?????????????????????### r ###?????????????#### | | ?????????????????????## ####????????????#### | | ?????????????????????## #####?????????????### | | ?????????????????????## ####??????????????## | | ?????????????????????## ##????????????????## | | ????????????????????### ##????????????????## | | ???????????????????#### #######???????????## | | ???????????????????### #######???????????### | | ???????????????????## ##################### | | ??????????????????### ### ##################### | | ?????????????????### ###![ | | ????????????????### ### | | ????????????????## ####################### | | ????????????????## ######################## | | ????????????????### ###???????????????????#### | | ????????????????#### ####????????????????????#### | | ?????????????????########??????????????????????### | | ??????????????????#####??????????????????????????? | | ?????????????????????????????????????????????????? | | ?????????????????????????????????????????????????? | | ?????????????????????????????????????????????????? | | ?????????????????????????????????????????????????? | | | | | +----------------------------------------------------+ Best States ------------- Heat Dissipation 42 Energy Generation 12 Energy Capacity 265 Matter Stores 276 Matter Capacity 300 Sight Range 18 Terrain Scan Range 16 Terrain Scan Density 10 ECM Strength 1 Armor Coverage 225 Evasion (%) 50 Recoil Reduction 2 Item Schematics ----------------- None Robot Schematics ------------------ None Fabricated ------------ Nothing Repaired ---------- Nothing Studied --------- None Alien Tech Used ----------------- None Achievements -------------- None Challenges ------------ None Game ------ Seed OmegaIonHoverbase Manual? 0 Play Time 00:08:13 Cumulative 16.4 hours Start 2026.04.07 @ 11:57:53 End 2026.04.07 @ 12:05:32 Sessions 1 Manual Loads 0 Difficulty Rogue Special Mode None Game No. 46 Rogue 46 Adventurer 0 Explorer 0 Win Type - Total 0 Types 0/0/0/0/0/0/0/0/0/0 Lore% 8 Gallery% 18 Achievement% 10 Wizard Run 0 Options --------- Layout 2 ASCII 0 Keyboard 0 Movement Mouse Keybinds 0 Fullscreen 1 Font 24/Crisp Map View 50x44 Zoom Use 0% Tactical HUD 1 Map Filters NONE Filters NONE Steam 1 RUN: f183bf80-68e9-450f-9279-e51d4510dd02